fUSD/lending_fUSD_20260126
["ID","MTS","AMOUNT","RATE_DAILY","PERIOD"]
[403661070,1769451454275,-250.0,0.00016467,2]
[403661071,1769451454551,-4729.20728794,0.00016467,2]
[403661072,1769451456357,-2254.34858006,0.00016466,2]
[403661073,1769451456385,-250.0,0.00016467,2]
[403661074,1769451456415,-250.0,0.00016467,2]
[403661075,1769451456444,-250.0,0.00016467,2]
[403661076,1769451456482,-500.0,0.00016467,2]
[403661077,1769451456512,-250.0,0.00016467,2]
[403661078,1769451456647,-2491.31283988,0.00016467,2]
[403661079,1769451476279,-300.0,0.00016466,2]
[403661080,1769451476311,-300.0,0.00016466,2]
[403661081,1769451476340,-313.34353873,0.00016467,2]
[403661082,1769451476368,-200.0,0.00016467,2]
[403661083,1769451476396,-250.0,0.00016467,2]
[403661084,1769451476424,-823.77908852,0.00016467,2]
[403661085,1769451476452,-500.0,0.00016467,2]
[403661086,1769451476482,-250.0,0.00016467,2]
[403661087,1769451476512,-151.0,0.00016467,2]
[403661088,1769451476542,-250.0,0.00016467,2]
[403661089,1769451476572,-151.0,0.00016467,2]
[403661090,1769451476600,-151.0,0.00016467,2]
[403661091,1769451476632,-250.0,0.00016467,2]
[403661092,1769451476661,-151.0,0.00016467,2]
[403661093,1769451476690,-250.0,0.00016467,2]
[403661094,1769451476718,-151.0,0.00016467,2]
[403661095,1769451476746,-250.0,0.00016467,2]
[403661096,1769451476774,-151.0,0.00016467,2]
[403661097,1769451476802,-151.0,0.00016467,2]
[403661098,1769451477528,-11.7647455,0.00016466,2]
[403661099,1769451482118,-288.2352545,0.00016466,2]
[403661100,1769451482150,-300.0,0.00016466,2]
[403661101,1769451482179,-300.0,0.00016466,2]
[403661102,1769451482209,-300.0,0.00016466,2]
[403661103,1769451482239,-300.0,0.00016466,2]
[403661104,1769451482267,-152.52,0.00016466,2]
[403661105,1769451482298,-250.0,0.00016467,2]
[403661106,1769451482326,-151.0,0.00016467,2]
[403661107,1769451482354,-250.0,0.00016467,2]
[403661108,1769451482380,-695.39793187,0.00016467,2]
[403661109,1769451482408,-151.0,0.00016467,2]
[403661110,1769451482435,-250.0,0.00016467,2]
[403661111,1769451482470,-151.0,0.00016467,2]
[403661112,1769451482499,-250.0,0.00016467,2]
[403661113,1769451482528,-151.0,0.00016467,2]
[403661114,1769451482558,-250.0,0.00016467,2]
[403661115,1769451482586,-151.0,0.00016467,2]
[403661116,1769451482614,-250.0,0.00016467,2]
[403661117,1769451482643,-151.0,0.00016467,2]
[403661118,1769451482671,-160.0,0.00016467,2]
[403661119,1769451483008,-195.70362726,0.00016467,2]
[403661120,1769451488257,-256.55554551,0.00016467,2]
[403661121,1769451488286,-4.29637274,0.00016467,2]
[403661122,1769451488314,-3543.0,0.00016467,2]
[403661123,1769451488341,-578.20924308,0.00016467,2]
[403661124,1769451488407,-1235.88767734,0.00016467,2]
[403661125,1769451545322,1555.57,0.00019178,30]
[403661126,1769451850808,-1282.595,0.00016138,2]
[403661127,1769451850836,-167.383,0.00016138,2]
[403661128,1769451850866,-151.0,0.00016181,2]
[403661129,1769451850894,-151.0,0.00016182,2]
[403661130,1769451850922,-151.0,0.00016183,2]
[403661131,1769451850950,-150.00017139,0.00016442,2]
[403661132,1769451850978,-250.0,0.00016457,2]
[403661133,1769451851006,-201.93286099,0.00016457,2]
[403661134,1769451851033,-342.0,0.00016457,2]
[403661135,1769451851060,-500.0,0.00016457,2]
[403661136,1769451851087,-250.0,0.00016457,2]
[403661137,1769451851115,-250.0,0.00016457,2]
[403661138,1769451851144,-250.0,0.00016457,2]
[403661139,1769451851173,-250.0,0.00016457,2]
[403661140,1769451851204,-500.0,0.00016457,2]
[403661141,1769451851233,-56.18793524,0.00016457,2]
[403661142,1769451851406,-193.81206476,0.00016457,2]
[403661143,1769451851437,-823.77908852,0.00016457,2]
[403661144,1769451851467,-500.0,0.00016457,2]
[403661145,1769451851496,-250.0,0.00016457,2]
[403661146,1769451851525,-500.0,0.00016457,2]
[403661147,1769451851553,-500.0,0.00016457,2]
[403661148,1769451851586,-500.0,0.00016457,2]
[403661149,1769451851614,-500.0,0.00016457,2]
[403661150,1769451851643,-500.0,0.00016457,2]
[403661151,1769451851671,-500.0,0.00016457,2]
[403661152,1769451851700,-197.62858924,0.00016457,2]
[403661153,1769451851788,-69.57051496,0.00016457,2]
[403661154,1769451851816,-151.0,0.00016457,2]
[403661155,1769451851844,-151.0,0.00016457,2]
[403661156,1769451851872,-151.0,0.00016457,2]
[403661157,1769451851900,-151.0,0.00016457,2]
[403661158,1769451851932,-500.0,0.00016457,2]
[403661159,1769451851964,-151.0,0.00016457,2]
[403661160,1769451851992,-500.0,0.00016457,2]
[403661161,1769451852020,-151.0,0.00016457,2]
[403661162,1769451852048,-695.39793187,0.00016457,2]
[403661163,1769451852077,-500.0,0.00016457,2]
[403661164,1769451852108,-151.0,0.00016457,2]
[403661165,1769451852137,-200.0,0.00016457,2]
[403661166,1769451852412,-616.51378963,0.00016457,2]
[403661167,1769451852443,-250.0,0.00016457,2]
[403661168,1769451852472,-151.0,0.00016457,2]
[403661169,1769451852502,-250.0,0.00016457,2]
[403661170,1769451852532,-151.0,0.00016457,2]
[403661171,1769451852642,-250.0,0.00016457,2]
[403661172,1769451852671,-151.0,0.00016457,2]
[403661173,1769451852700,-250.0,0.00016457,2]
[403661174,1769451852729,-151.0,0.00016457,2]
[403661175,1769451852759,-250.0,0.00016457,2]
[403661176,1769451852788,-151.0,0.00016457,2]
[403661177,1769451852817,-500.0,0.00016457,2]
[403661178,1769451852847,-250.0,0.00016457,2]
[403661179,1769451852876,-500.0,0.00016457,2]
[403661180,1769451852903,-250.0,0.00016457,2]
[403661181,1769451852932,-500.0,0.00016457,2]
[403661182,1769451852962,-250.0,0.00016457,2]
[403661183,1769451852994,-500.0,0.00016457,2]
[403661184,1769451853025,-250.0,0.00016457,2]
[403661185,1769451853056,-572.6107,0.00016457,2]
[403661186,1769451853085,-198.7886,0.00016457,2]
[403661187,1769451853208,-51.2114,0.00016457,2]
[403661188,1769451853238,-250.0,0.00016457,2]
[403661189,1769451853267,-250.0,0.00016457,2]
[403661190,1769451853296,-151.0,0.00016457,2]
[403661191,1769451853326,-174.61919141,0.00016457,2]
[403661192,1769451853354,-250.0,0.00016457,2]
[403661193,1769451853384,-383.86863821,0.00016457,2]
[403661194,1769451853412,-322.6107,0.00016457,2]
[403661195,1769451853441,-2790.39014076,0.00016457,2]
[403661196,1769451853707,-752.60985924,0.00016457,2]
[403661197,1769451853736,-151.0,0.00016457,2]
[403661198,1769451853766,-1278.76498765,0.00016457,2]
[403661199,1769451853795,-236.0,0.00016465,2]
[403661200,1769451853829,-616.06384176,0.00016465,2]
[403661201,1769451853858,-647.68539864,0.00016465,2]
[403661202,1769451853895,-616.06384176,0.00016465,2]
[403661203,1769451853927,-616.06384176,0.00016465,2]
[403661204,1769451854062,-616.06384176,0.00016465,2]
[403661205,1769451854092,-616.06384176,0.00016465,2]
[403661206,1769451854125,-616.06384176,0.00016465,2]
[403661207,1769451854155,-616.06384176,0.00016465,2]
[403661208,1769451854186,-616.06384176,0.00016465,2]
[403661209,1769451854217,-616.06384176,0.00016465,2]
[403661210,1769451854248,-616.06384176,0.00016465,2]
[403661211,1769451854279,-616.06384176,0.00016465,2]
[403661212,1769451854539,-616.06384176,0.00016465,2]
[403661213,1769451854573,-616.06384176,0.00016465,2]
[403661214,1769451854606,-616.06384176,0.00016465,2]
[403661215,1769451854643,-616.06384176,0.00016465,2]
[403661216,1769451854676,-616.06384176,0.00016465,2]
[403661217,1769451854927,-616.06384176,0.00016465,2]
[403661218,1769451854961,-616.06384176,0.00016465,2]
[403661219,1769451854993,-616.06384176,0.00016465,2]
[403661221,1769451855975,-616.06384176,0.00016465,2]
[403661222,1769451856007,-616.06384176,0.00016465,2]
[403661223,1769451856040,-616.06384176,0.00016465,2]
[403661224,1769451856070,-616.06384176,0.00016465,2]
[403661225,1769451856103,-616.06384176,0.00016465,2]
[403661226,1769451856138,-616.06384176,0.00016465,2]
[403661227,1769451856172,-616.06384176,0.00016465,2]
[403661228,1769451856208,-616.06384176,0.00016465,2]
[403661229,1769451856266,-616.06384176,0.00016465,2]
[403661230,1769451856303,-616.06384176,0.00016465,2]
[403661231,1769451856337,-616.06384176,0.00016465,2]
[403661232,1769451856374,-616.06384176,0.00016465,2]
[403661233,1769451856410,-616.06384176,0.00016465,2]
[403661234,1769451856442,-616.06384176,0.00016465,2]
[403661235,1769451856476,-616.06384176,0.00016465,2]
[403661236,1769451856509,-616.06384176,0.00016465,2]
[403661237,1769451858654,-31.04551627,0.00016465,2]
[403661238,1769451858668,-585.01832549,0.00016465,2]
[403661239,1769451858678,-31.04551627,0.00016465,2]
[403661240,1769451858693,-585.01832549,0.00016465,2]
[403661241,1769451858702,-31.04551627,0.00016465,2]
[403661242,1769451858721,-585.01832549,0.00016465,2]
[403661243,1769451858731,-31.04551627,0.00016465,2]
[403661244,1769451858747,-142.98853184,0.00016465,2]
[403661245,1769451858783,-442.02979365,0.00016465,2]
[403661246,1769451858815,-616.06384176,0.00016465,2]
[403661247,1769451858846,-616.06384176,0.00016465,2]
[403661248,1769451858878,-616.06384176,0.00016465,2]
[403661249,1769451858909,-616.06384176,0.00016465,2]
[403661250,1769451858940,-616.06384176,0.00016465,2]
[403661251,1769451858972,-616.06384176,0.00016465,2]
[403661252,1769451859003,-616.06384176,0.00016465,2]
[403661253,1769451859067,-616.06384176,0.00016465,2]
[403661254,1769451859100,-616.06384176,0.00016465,2]
[403661255,1769451859131,-616.06384176,0.00016465,2]
[403661256,1769451859161,-616.06384176,0.00016465,2]
[403661257,1769451859190,-616.06384176,0.00016465,2]
[403661258,1769451859220,-608.55086807,0.00016465,2]
[403661259,1769451859250,-608.55086807,0.00016465,2]
[403661260,1769451859282,-608.55086807,0.00016465,2]
[403661261,1769451859334,-608.55086807,0.00016465,2]
[403661262,1769451859365,-608.55086807,0.00016465,2]
[403661263,1769451859397,-608.55086807,0.00016465,2]
[403661264,1769451859425,-608.55086807,0.00016465,2]
[403661265,1769451859455,-608.55086807,0.00016465,2]
[403661266,1769451859485,-608.55086807,0.00016465,2]
[403661267,1769451859516,-608.55086807,0.00016465,2]
[403661268,1769451859546,-608.55086807,0.00016465,2]
[403661269,1769451859595,-608.55086807,0.00016465,2]
[403661270,1769451859625,-608.55086807,0.00016465,2]
[403661271,1769451859657,-608.55086807,0.00016465,2]
[403661272,1769451859688,-608.55086807,0.00016465,2]
[403661273,1769451859721,-608.55086807,0.00016465,2]
[403661274,1769451859986,-608.55086807,0.00016465,2]
[403661275,1769451860031,-608.55086807,0.00016465,2]
[403661276,1769451860061,-608.55086807,0.00016465,2]
[403661277,1769451860890,-608.55086807,0.00016465,2]
[403661278,1769451860928,-608.55086807,0.00016465,2]
[403661279,1769451860961,-608.55086807,0.00016465,2]
[403661280,1769451860992,-608.55086807,0.00016465,2]
[403661281,1769451861023,-608.55086807,0.00016465,2]
[403661282,1769451861054,-608.55086807,0.00016465,2]
[403661283,1769451861086,-608.55086807,0.00016465,2]
[403661284,1769451861118,-608.55086807,0.00016465,2]
[403661285,1769451861262,-608.55086807,0.00016465,2]
[403661286,1769451861293,-608.55086807,0.00016465,2]
[403661287,1769451861322,-506.33966749,0.00016466,2]
[403661288,1769451861351,-500.0,0.00016466,2]
[403661289,1769451861379,-500.0,0.00016466,2]
[403661290,1769451861407,-500.0,0.00016466,2]
[403661291,1769451861435,-178.65,0.00016466,2]
[403661292,1769451861462,-500.0,0.00016466,2]
[403661293,1769451861492,-500.0,0.00016466,2]
[403661294,1769451861520,-578.20924308,0.00016466,2]
[403661295,1769451861609,-201.93286099,0.00016466,2]
[403661296,1769451861639,-1440.43643808,0.00016466,2]
[403661297,1769451861670,-213.36983584,0.00016466,2]
[403661298,1769451861697,-237.27399246,0.00016466,2]
[403661299,1769451861726,-2028.91372209,0.00016466,2]
[403661300,1769451864518,798.0,0.00016457,2]
[403661301,1769451868677,593.33709636,0.00016465,2]
[403661302,1769451868708,593.33709636,0.00016465,2]
[403661303,1769451868746,593.33709636,0.00016465,2]
[403661304,1769451868788,593.33709636,0.00016465,2]
[403661305,1769451868821,593.33709636,0.00016465,2]
[403661306,1769451868857,593.33709636,0.00016465,2]
[403661307,1769451868899,593.33709636,0.00016465,2]
[403661308,1769451868930,593.33709636,0.00016465,2]
[403661309,1769451868972,593.33709636,0.00016465,2]
[403661310,1769451869016,593.33709636,0.00016465,2]
[403661311,1769451878389,-500.0,0.00016466,2]
[403661312,1769451878419,-169.81442958,0.00016466,2]
[403661313,1769451878449,-500.0,0.00016466,2]
[403661314,1769451878485,-1632.17431616,0.00016467,2]
[403661315,1769451878516,-787.75432809,0.00016467,2]
[403661316,1769451878545,-1156.3806094,0.00016467,2]
[403661317,1769451878578,-150.99,0.00016467,2]
[403661318,1769451907872,200.0,0.00016467,2]
[403661320,1769451940443,5.78263354,0.00016466,2]
[403661321,1769451940466,152.4000281,0.00016466,2]
[403661322,1769451949496,500.0,0.00016466,2]
[403661323,1769451949805,500.0,0.00016466,2]
[403661324,1769451950119,500.0,0.00016466,2]
[403661325,1769451950445,500.0,0.00016466,2]
[403661326,1769451950767,500.0,0.00016466,2]
[403661327,1769451951104,500.0,0.00016466,2]
[403661328,1769451951431,500.0,0.00016466,2]
[403661329,1769451951732,500.0,0.00016466,2]
[403661330,1769451952119,500.0,0.00016466,2]
[403661331,1769451952593,500.0,0.00016466,2]
[403661332,1769451952859,500.0,0.00016466,2]
[403661333,1769451953359,482.89598339,0.00016466,2]
[403661334,1769451961701,3864.71398851,8e-05,2]
[403661335,1769451961725,10000.01,8e-05,2]
[403661336,1769451961748,2999.02234332,8e-05,2]
[403661337,1769451995296,500.0,0.00016466,2]
[403661338,1769451995342,318.8701007,0.00016466,2]
[403661339,1769452015135,4560.40169202,0.000162,5]
[403661341,1769452022024,500.0,0.00016466,2]
[403661342,1769452022068,164.76622038,0.00016466,2]
[403661343,1769452027902,578.20924308,0.00016467,2]
[403661344,1769452027972,174.61919141,0.00016467,2]
[403661345,1769452030823,201.93286099,0.00016467,2]
[403661346,1769452030885,201.93286099,0.00016467,2]
[403661347,1769452032802,205.0,9.8e-05,2]
[403661348,1769452033351,249.0,0.00016467,2]
[403661349,1769452033922,-150.0,0.00016467,2]
[403661350,1769452034945,3543.0,0.00016467,2]
[403661351,1769452036942,-8596.41547329,0.00016467,2]
[403661352,1769452037020,-10000.01,0.00016467,2]
[403661353,1769452037074,260.00289381,0.000101,2]
[403661354,1769452037167,-10000.01,0.00016467,2]
[403661355,1769452037294,-10000.01,0.00016467,2]
[403661356,1769452099581,1932.7506867,0.0001,2]
[403661357,1769452101490,391.74990847,7.888e-05,2]
[403661358,1769452111475,2737.41876215,0.0001,2]
[403661359,1769452122530,17135.84664282,0.0001,2]
[403661360,1769452129288,1596.839999,0.000149,2]
[403661389,1769452232131,-3844.790966,0.00015538,2]
[403661391,1769452232141,-166.66,0.00015696,2]
[403661392,1769452232150,-700.0,0.000159,5]
[403661393,1769452232160,-150.00019084,0.00015994,2]
[403661394,1769452232170,-300.0,0.00015999,2]
[403661395,1769452232178,-1200.0,0.00015999,2]
[403661396,1769452232187,-300.0,0.00015999,2]
[403661397,1769452232198,-86756.45013991,0.00016,4]
[403661398,1769452232208,-166.66,0.00016026,2]
[403661399,1769452232217,-406.83235838,0.00016267,2]
[403661400,1769452232227,-158.18266162,0.00016267,2]
[403661401,1769452232237,-1826.0223498,0.00016267,2]
[403661402,1769452232246,-166.66,0.00016357,2]
[403661403,1769452232257,-150.0,0.00016367,2]
[403661404,1769452232266,-115182.08781664,0.00016367,2]
[403661405,1769452232278,-7182.83268633,0.00016367,2]
[403661406,1769452232302,-8027.97513753,0.00016367,2]
[403661410,1769452238269,-306.79342943,0.00016367,2]
[403661411,1769452238281,-6000.89731925,0.00016367,2]
[403661412,1769452238324,-4068.28468683,0.00016367,2]
[403661413,1769452238337,-2224.17408572,0.00016367,2]
[403661414,1769452238379,-485.4300017,0.00016367,2]
[403661605,1769452240396,-440.54,0.00016367,2]
[403661868,1769452244939,-151.0,0.00016004,2]
[403661869,1769452244950,-311.28138314,0.00016367,2]
[403661875,1769452246798,-4461.41982324,0.00016367,2]
[403661876,1769452246810,-424.99999995,0.00016367,2]
[403661881,1769452259948,151.0,0.00015998,2]
[403661882,1769452262238,383.65677568,0.00016367,2]
[403661883,1769452262293,262.14784922,0.00016367,2]
[403661884,1769452262323,216.85110539,0.00016367,2]
[403661885,1769452268867,1296.39279429,0.00016267,2]
[403661886,1769452276137,151.0,0.00015987,2]
[403661887,1769452292216,-157.0,0.00016367,2]
[403661888,1769452292318,-7224.96147542,0.00016367,2]
[403661889,1769452300223,-151.0,0.00015989,2]
[403661890,1769452300263,-266.16755992,0.0001604,2]
[403661891,1769452302426,-241.55172431,0.0001604,2]
[403661892,1769452306984,-200.17713873,0.0001604,2]
[403661893,1769452307525,-318.17957704,0.0001604,2]
[403661894,1769452307579,-167.383,0.0001604,2]
[403661895,1769452309973,151.0,0.00015994,2]
[403661896,1769452326861,151.0,0.0001602,2]
[403661899,1769452338353,-158.0,0.00016367,2]
[403661900,1769452338420,-9382.01,0.00016367,2]
[403661901,1769452338448,-10000.01,0.00016367,2]
[403661902,1769452338638,-10000.01,0.00016367,2]
[403661903,1769452338848,-10000.01,0.00016367,2]
[403661904,1769452341378,-10000.01,0.00016367,2]
[403661905,1769452344692,-151.0,0.00016016,2]
[403661906,1769452346189,4829.2589827,0.00016366,2]
[403661907,1769452355666,166.0995494,0.00016367,2]
[403661908,1769452360250,151.0,0.00016089,2]
[403661909,1769452376691,151.0,0.00016107,2]
[403661910,1769452382406,550.0,0.00016366,2]
[403661911,1769452384195,705.56554114,0.00016267,2]
[403661912,1769452387001,500.0,0.00011773,2]
[403661913,1769452387169,489.57842878,0.00011773,2]
[403661914,1769452387609,500.75682028,0.00011773,2]
[403661915,1769452389492,-290.77133265,0.00016367,2]
[403661916,1769452390048,500.0,0.00011773,2]
[403661917,1769452390523,500.0,0.00011773,2]
[403661918,1769452390599,654.7506777,0.00012321,2]
[403661919,1769452390620,345.2493223,0.00012321,2]
[403661920,1769452390764,500.0,0.00011773,2]
[403661921,1769452393157,500.0,0.00011773,2]
[403661922,1769452393199,151.0,0.00016108,2]
[403661923,1769452393226,1007.32533855,0.00012321,2]
[403661924,1769452393415,500.0,0.00011773,2]
[403661925,1769452393459,1000.0,0.00012321,2]
[403661926,1769452394123,500.0,0.00011773,2]
[403661927,1769452394280,500.0,0.00011773,2]
[403661928,1769452394320,1000.0,0.00012321,2]
[403661929,1769452394541,-302.0,0.00016367,2]
[403661930,1769452395146,166.67755116,0.00011773,2]
[403661931,1769452396162,500.0,0.00011773,2]
[403661932,1769452397636,500.0,0.00011773,2]
[403661933,1769452397688,1000.0,0.00012321,2]
[403661934,1769452400035,500.0,0.00011773,2]
[403661935,1769452400067,875.92645048,0.00012321,2]
[403661936,1769452400795,453.83133751,0.00011773,2]
[403661937,1769452400818,46.16866249,0.00011773,2]
[403661938,1769452400849,303.1127939,0.00012321,2]
[403661939,1769452402777,500.0,0.00011773,2]
[403661940,1769452402814,1000.0,0.00012321,2]
[403661941,1769452402842,500.0,0.00011773,2]
[403661942,1769452402880,1000.0,0.00012321,2]
[403661943,1769452403918,217.46506473,0.00011773,2]
[403661944,1769452405070,163.75696087,0.00011773,2]
[403661945,1769452405280,169.51830234,0.00011773,2]
[403661946,1769452406655,502.89877827,0.00011773,2]
[403661947,1769452406954,500.0,0.00011773,2]
[403661948,1769452406985,500.0,0.00011773,2]
[403661949,1769452407020,1000.0,0.00012321,2]
[403661950,1769452407048,239.25914065,0.00012321,2]
[403661951,1769452407155,500.0,0.00011773,2]
[403661952,1769452407187,1000.0,0.00012321,2]
[403661953,1769452408056,166.25784025,0.00011773,2]
[403661954,1769452408940,500.0,0.00011773,2]
[403661955,1769452408994,1000.0,0.00012321,2]
[403661956,1769452409968,151.0,0.00016075,2]
[403661957,1769452426100,40.5724565,0.00016076,2]
[403661958,1769452426123,110.4275435,0.00016076,2]
[403661959,1769452442500,151.0,0.00016075,2]
[403661960,1769452446286,225.26454163,0.00011773,2]
[403661961,1769452449944,500.0,0.00011773,2]
[403661962,1769452449990,1000.0,0.00012321,2]
[403661963,1769452488122,166.0995494,0.00016367,2]
[403661964,1769452493058,2798.33,0.00016302,2]
[403661965,1769452501480,1200.0,0.00016366,2]
[403661966,1769452503291,173.65667082,0.00011773,2]
[403661967,1769452503407,164.5401759,0.00011773,2]
[403661968,1769452506015,151.0,0.00016364,2]
[403661969,1769452506910,151.0,0.00016075,2]
[403661970,1769452507923,500.0,0.00011773,2]
[403661971,1769452507982,1000.0,0.00012321,2]
[403661972,1769452508028,1500.0,0.00012868,2]
[403661973,1769452508084,446.80273923,0.00013416,2]
[403661974,1769452509641,278.24022797,0.00011773,2]
[403661975,1769452509739,500.0,0.00011773,2]
[403661976,1769452509786,970.34063668,0.00012321,2]
[403661977,1769452509810,29.65936332,0.00012321,2]
[403661978,1769452509846,1500.0,0.00012868,2]
[403661979,1769452509890,2000.0,0.00013416,2]
[403661980,1769452509961,2408.40901104,0.00013964,2]
[403661981,1769452511398,500.0,0.00012321,2]
[403661982,1769452511436,500.0,0.00011773,2]
[403661983,1769452513382,-181.0,0.00016367,2]
[403661984,1769452513659,151.0,0.00016367,2]
[403661985,1769452513688,295.53299041,0.00016367,2]
[403661986,1769452513723,151.0,0.00016367,2]
[403661987,1769452514096,500.0,0.00011773,2]
[403661988,1769452514150,500.0,0.00012321,2]
[403661989,1769452515583,500.0,0.00011773,2]
[403661990,1769452515633,500.0,0.00012321,2]
[403661991,1769452517519,500.0,0.00011773,2]
[403661992,1769452517578,1000.0,0.00012321,2]
[403661993,1769452517621,1500.0,0.00012868,2]
[403661994,1769452517687,1484.2666436,0.00013964,2]
[403661995,1769452518390,2000.0,0.00013416,2]
[403661996,1769452518496,500.0,0.00011773,2]
[403661997,1769452518538,500.0,0.00012321,2]
[403661998,1769452519750,-367.79948562,0.00016367,2]
[403661999,1769452520092,-284.62964827,0.00016367,2]
[403662000,1769452520530,500.0,0.00011773,2]
[403662001,1769452520561,1000.0,0.00012321,2]
[403662002,1769452520599,1500.0,0.00012868,2]
[403662003,1769452520633,1814.99405907,0.00013416,2]
[403662004,1769452521654,500.0,0.00011773,2]
[403662005,1769452521715,1500.0,0.00012868,2]
[403662006,1769452521766,1000.0,0.00012321,2]
[403662007,1769452521823,2000.0,0.00013416,2]
[403662008,1769452521878,2500.0,0.00013964,2]
[403662009,1769452521931,3000.0,0.00014512,2]
[403662010,1769452522640,-366.65727684,0.0001506,2]
[403662011,1769452522781,-2500.96059659,0.0001506,2]
[403662012,1769452522811,-2057.19724691,0.00016267,2]
[403662013,1769452522839,-183.89974281,0.00016367,2]
[403662014,1769452522960,-9634.5876802,0.00016367,2]
[403662015,1769452530712,500.0,0.00011773,2]
[403662016,1769452530754,1000.0,0.00012321,2]
[403662017,1769452530783,1916.08246383,0.00015608,2]
[403662018,1769452530817,1500.0,0.00012868,2]
[403662019,1769452530861,2000.0,0.00013416,2]
[403662020,1769452530911,2500.0,0.00013964,2]
[403662021,1769452530970,583.92753617,0.00014512,2]
[403662022,1769452530996,2416.07246383,0.00014512,2]
[403662023,1769452532728,500.0,0.00011773,2]
[403662024,1769452532783,1000.0,0.00012321,2]
[403662025,1769452532835,1500.0,0.00012868,2]
[403662026,1769452532891,2000.0,0.00013416,2]
[403662027,1769452532947,2428.06099131,0.00013964,2]
[403662028,1769452537428,-267.61962145,0.0001506,2]
[403662029,1769452542291,-308.75273905,0.0001506,2]
[403662030,1769452544387,-387.2902724,0.0001506,2]
[403662031,1769452546597,-188.41388948,0.0001506,2]
[403662032,1769452548790,-194.48627414,0.0001506,2]
[403662033,1769452550928,-214.79177468,0.0001506,2]
[403662034,1769452552481,-240.29600961,0.0001506,2]
[403662035,1769452554664,-196.44286658,0.0001506,2]
[403662036,1769452558669,-300.0,0.0001506,2]
[403662037,1769452561501,-190.82611949,0.0001506,2]
[403662038,1769452562955,567.68971129,0.00011773,2]
[403662039,1769452563541,-350.63134384,0.0001506,2]
[403662040,1769452564842,500.0,0.00011773,2]
[403662041,1769452564900,1000.0,0.00012321,2]
[403662042,1769452565608,177.55318522,0.00011773,2]
[403662043,1769452565775,-277.81258997,0.0001506,2]
[403662044,1769452572596,-242.12812927,0.0001506,2]
[403662045,1769452623288,500.0,0.00011773,2]
[403662046,1769452623328,1000.0,0.00012321,2]
[403662047,1769452688899,500.0,0.00011773,2]
[403662048,1769452688950,1000.0,0.00012321,2]
[403662049,1769452689003,1497.73333874,0.00012868,2]
[403662050,1769452702882,-406.15,0.00015909,2]
[403662051,1769452702911,-250.0,0.00015982,2]
[403662052,1769452702938,-151.0,0.00016055,2]
[403662053,1769452702967,-151.0,0.00016064,2]
[403662054,1769452703216,-216.57287957,0.00016267,2]
[403662055,1769452703264,-5431.87452957,0.00016267,2]
[403662056,1769452703322,-4134.98971129,0.00016267,2]
[403662057,1769452703362,-1730.03057742,0.00016267,2]
[403662058,1769452703464,-22.01885604,0.00016267,2]
[403662059,1769452703493,-4185.6594,0.00016267,2]
[403662060,1769452703549,-1584.65348792,0.00016267,2]
[403662061,1769452705874,-915.34651208,0.00016267,2]
[403662062,1769452705904,-500.0,0.00016329,2]
[403662063,1769452718032,151.0,0.00016222,2]
[403662064,1769452719508,-183.02514493,0.00016357,2]
[403662066,1769452722672,-210.02429785,0.00016357,2]
[403662067,1769452726644,-393.97570215,0.00016357,2]
[403662068,1769452728065,3770.3484,0.00016267,2]